bitfinex-derivatives/quotes_ETHF0:USTF0_20210702
["timestamp","ask_amount","ask_price","bid_price","bid_amount"]
[1625204620897,4.18137187,2040.9,2040.7,2.20527]
[1625204621096,1.41114728,2040.8,2040.7,2.20527]
[1625204621845,1.41114728,2040.8,2040.7,53.25247]
[1625204622049,1.41172464,2040.9,2040.7,53.25247]
[1625204622450,1.97641449,2041.0,2040.7,53.25247]
[1625204622451,1.4118548,2041.0,2040.7,53.25247]
[1625204623351,1.4118548,2041.0,2040.7,2.20527]
[1625204624102,1.4118548,2041.0,2040.9,2.20527]
[1625204625913,1.97659672,2041.1,2040.9,2.20527]
[1625204625914,1.41214143,2041.1,2040.9,2.20527]
[1625204626305,1.41291169,2041.0,2040.9,2.20527]
[1625204628059,3.61818169,2041.0,2040.9,2.20527]
[1625204628260,4.18204048,2041.0,2040.9,2.20527]
[1625204629013,5.02797565,2041.0,2040.9,2.20527]
[1625204633637,2.20527,2041.0,2040.9,2.20527]
[1625204633990,5.02827396,2041.0,2040.9,2.20527]
[1625204640211,5.02827396,2041.0,2040.4,2.20527]
[1625204640558,1.41165138,2040.8,2040.4,2.20527]
[1625204641763,1.41177237,2040.7,2040.4,2.20527]
[1625204642113,2.20527,2040.6,2040.4,4.41054]
[1625204649144,1.41178833,2040.7,2040.4,6.92954]
[1625204649550,1.41482502,2040.8,2040.4,6.92954]
[1625204649953,1.41543705,2040.9,2040.4,6.92954]
[1625204650252,1.98128766,2040.9,2040.8,2.20527]
[1625204651453,1.4149534,2040.9,2040.8,2.20527]
[1625204651754,1.98074386,2040.9,2040.8,2.20527]
[1625204652356,1.41506815,2040.9,2040.8,2.20527]
[1625204654814,1.98001428,2040.9,2040.8,2.20527]
[1625204655516,4.26551428,2040.9,2040.8,2.20527]
[1625204658876,5.12066124,2040.9,2040.8,2.20527]
[1625204660982,5.97442567,2040.9,2040.8,2.20527]
[1625204662813,2.2855,2040.9,2040.8,2.20527]
[1625204662915,6.74898096,2041.0,2040.8,2.20527]
[1625204663416,4.54371096,2041.0,2040.8,2.20527]
[1625204663618,3.69584972,2040.9,2040.8,2.20527]
[1625204664369,2.20527,2041.2,2040.8,2.20527]
[1625204664370,3.69517926,2041.0,2040.8,2.20527]
[1625204666222,6.75318293,2041.2,2040.8,2.20527]
[1625204666223,3.68904032,2040.9,2040.8,2.20527]
[1625204670798,6.38554032,2040.9,2040.8,2.20527]
[1625204671047,2.6965,2040.9,2040.8,2.20527]
[1625204672602,4.55377176,2041.0,2040.8,2.20527]
[1625204674352,4.55377176,2041.0,2040.9,2.20527]
[1625204674655,6.0038802,2041.0,2040.9,2.20527]
[1625204679377,8.4192802,2041.0,2040.9,2.20527]
[1625204679730,3.86550844,2041.0,2040.9,2.20527]
[1625204680492,8.4131583,2041.0,2040.9,2.20527]
[1625204682999,14.2139032,2041.0,2040.9,2.20527]
[1625204683099,9.66625334,2041.0,2040.9,2.20527]
[1625204683450,3.86550844,2041.0,2040.8,2.20527]
[1625204683601,3.86550844,2041.0,2040.8,1.24507]
[1625204683703,4.83360844,2041.0,2040.1,15.4422]
[1625204683801,7.25179695,2040.9,2040.1,15.4422]
[1625204684102,8.70008499,2040.9,2040.1,15.4422]
[1625204684451,47.70477,2040.3,2040.2,2.20527]
[1625204684552,51.34177,2040.3,2040.2,2.20527]
[1625204684901,52.79238647,2040.3,2040.2,2.20527]
[1625204685353,57.32133464,2040.3,2040.2,2.20527]
[1625204685707,57.32133464,2040.3,2039.1,1.44740853]
[1625204685809,58.29683464,2040.3,2039.1,1.44740853]
[1625204686003,1.45087603,2040.2,2039.1,1.44740853]
[1625204686206,6.22141423,2039.5,2038.8,16.0658]
[1625204686304,8.53481423,2039.5,2038.8,16.0658]
[1625204686503,2.20527,2039.2,2039.1,2.20527]
[1625204688508,4.41054,2039.2,2039.1,2.20527]
[1625204694304,1.41494917,2039.7,2039.1,2.20527]
[1625204694554,1.41494917,2039.7,2039.6,4.93117]
[1625204694657,3.62098234,2039.9,2039.6,4.93117]
[1625204694958,2.20527,2039.9,2039.6,4.93117]
[1625204698514,2.20527,2039.9,2039.6,7.13644]
[1625204699220,2.20527,2039.9,2039.6,67.27874]
[1625204699722,1.41660661,2040.4,2039.6,67.27874]
[1625204700376,1.41744515,2040.5,2039.6,67.27874]
[1625204700521,1.41744515,2040.5,2040.4,4.41054]
[1625204700622,1.41843198,2040.7,2040.4,7.27824]
[1625204700971,1.41871112,2040.8,2040.4,7.27824]
[1625204701420,1.41871112,2040.8,2040.6,61.2827]
[1625204701674,1.41799527,2040.7,2040.6,61.2827]
[1625204701970,1.41799527,2040.7,2040.4,7.27824]
[1625204702421,1.41799527,2040.7,2040.4,4.41054]
[1625204702627,1.41799527,2040.7,2040.4,2.20527]
[1625204703228,4.69959338,2040.8,2040.4,2.20527]
[1625204703229,3.4021251,2040.8,2040.4,2.20527]
[1625204703324,1.41693172,2040.8,2040.4,2.20527]
[1625204704580,1.41693172,2040.8,2040.7,2.20527]
[1625204706582,3.62220172,2040.8,2040.7,2.20527]
[1625204706684,1.41693172,2040.8,2040.7,2.20527]
[1625204708689,1.41587232,2040.9,2040.7,2.20527]
[1625204710503,1.41604702,2041.0,2040.7,2.20527]
[1625204710651,1.41604702,2041.0,2040.9,2.20527]
[1625204713383,3.62200832,2041.1,2040.9,2.20527]
[1625204714036,2.20527,2041.1,2040.9,2.20527]
[1625204714736,1.41681072,2041.2,2040.9,2.20527]
[1625204715036,1.41678361,2041.3,2041.1,59.2411]
[1625204716142,1.4170634,2041.4,2041.1,59.2411]
[1625204716592,1.4170634,2041.4,2041.3,2.20527]
[1625204720655,1.4170634,2041.4,2041.3,7e-05]
[1625204720856,1.98298519,2041.4,2041.3,7e-05]
[1625204720963,53.37098519,2041.4,2041.3,7e-05]
[1625204721157,51.388,2041.4,2041.3,7e-05]
[1625204721557,54.22027226,2041.4,2041.3,7e-05]
[1625204722408,51.388,2041.4,2041.3,7e-05]
[1625204722657,53.59327,2041.4,2041.3,7e-05]
[1625204722961,56.42520466,2041.4,2041.3,7e-05]
[1625204723110,5.03720466,2041.4,2041.3,7e-05]
[1625204724120,4.18808469,2041.4,2041.3,7e-05]
[1625204724677,3.62165904,2041.4,2041.3,7e-05]
[1625204725480,3.62165904,2041.4,2040.9,2.20527]
[1625204725629,7.27595904,2041.4,2040.9,2.20527]
[1625204725731,1.41650152,2041.3,2040.9,2.20527]
[1625204726581,1.41635071,2041.2,2040.9,2.20527]
[1625204726680,2.20527,2041.0,2040.9,2.20527]
[1625204732507,3.20527,2041.0,2039.6,15.719]
[1625204732608,4.17347,2041.0,2039.6,17.16030913]
[1625204732709,4.41054,2039.7,2039.6,1.44130913]
[1625204732811,8.32434,2039.7,2039.6,1.44130913]
[1625204733157,8.32434,2039.7,2039.6,9.13e-06]
[1625204733322,8.32434,2039.7,2039.4,2.88261826]
[1625204733408,8.32434,2039.7,2039.0,15.8866]
[1625204733507,9.29334,2039.7,2039.0,15.8866]
[1625204733709,12.11694017,2039.7,2039.0,15.8866]
[1625204733856,47.5337,2039.3,2039.0,15.8866]
[1625204733955,1.0,2039.2,2039.0,15.8866]
[1625204734056,3.8616,2039.2,2039.0,15.8866]
[1625204734260,3.8616,2039.2,2039.0,11.4568]
[1625204734357,3.8616,2039.2,2039.0,10.6462]
[1625204734462,3.8616,2039.2,2039.0,9.3333]
[1625204734764,4.41054,2039.1,2039.0,9.3333]
[1625204734863,5.41054,2039.1,2039.0,9.3333]
[1625204735163,5.41054,2039.1,2037.5,2.20527]
[1625204735963,2.81680235,2039.0,2037.5,2.20527]
[1625204736065,1.0,2038.9,2037.5,2.20527]
[1625204736216,1.0,2038.9,2037.3,2.20527]
[1625204736714,4.41054,2037.4,2037.3,2.20527]
[1625204736814,7.29514,2037.4,2037.3,2.20527]
[1625204737874,8.29514,2037.4,2036.9,2.20527]
[1625204738727,2.20527,2037.0,2036.9,2.20527]
[1625204739231,3.20527,2037.0,2036.9,2.20527]
[1625204739328,3.20527,2037.0,2036.8,2.20527]
[1625204739781,3.20527,2037.0,2036.0,2.8773893]
[1625204740084,3.20527,2037.0,2035.6,4.60382288]
[1625204740085,3.20527,2037.0,2035.6,2.87784263]
[1625204740782,2.20527,2036.3,2036.2,2.20527]
[1625204741536,52.87827,2036.3,2036.2,2.20527]
[1625204741832,2.20527,2036.3,2036.2,2.20527]
[1625204742786,4.41054,2036.3,2036.2,2.20527]
[1625204743485,4.41054,2036.3,2036.0,2.20527]
[1625204743637,5.41054,2036.3,2035.3,5.0]
[1625204743886,4.41054,2036.3,2035.3,5.0]
[1625204744440,4.41054,2036.3,2035.4,17.72]
[1625204744542,4.41054,2036.3,2036.1,48.7583]
[1625204744743,4.41054,2036.3,2035.9,3.2548]
[1625204744744,4.41054,2036.3,2036.2,2.20527]
[1625204744842,4.41054,2036.3,2035.4,17.72]
[1625204744990,4.41054,2036.3,2035.3,5.0]
[1625204744991,7.24164,2036.3,2035.3,5.0]
[1625204745195,52.87954,2036.3,2035.3,5.0]
[1625204745645,53.87954,2036.3,2035.3,5.0]
[1625204746803,4.41054,2035.4,2035.3,5.0]
[1625204746902,7.73714,2035.4,2035.3,5.0]
[1625204747005,6.73714,2035.4,2035.3,5.0]
[1625204747612,64.20614,2035.4,2035.3,5.0]
[1625204748170,65.20614,2035.4,2035.3,5.0]
[1625204748319,65.20614,2035.4,2034.8,2.20527]
[1625204748467,64.20614,2035.4,2034.8,2.20527]
[1625204748919,4.41054,2034.9,2034.8,2.20527]
[1625204749268,7.50154,2034.9,2034.8,2.20527]
[1625204753032,4.41054,2034.9,2034.8,2.20527]
[1625204757310,5.41054,2034.9,2034.8,2.20527]
[1625204757409,5.41054,2034.9,2034.6,2.20527]
[1625204758214,4.41054,2034.9,2034.6,2.20527]
[1625204758966,4.41054,2034.9,2034.2,2.20527]
[1625204760379,1.0,2034.8,2034.2,2.20527]
[1625204760480,4.41054,2034.9,2034.2,2.20527]
[1625204760931,2.20527,2034.3,2034.2,2.20527]
[1625204762993,53.5668,2035.7,2034.2,2.20527]
[1625204763194,3.0718,2036.8,2034.2,2.20527]
[1625204763394,2.75778988,2037.9,2034.2,2.20527]
[1625204763494,3.74155878,2038.0,2034.2,2.20527]
[1625204763594,1.0,2037.0,2034.2,2.20527]
[1625204763693,3.6359,2037.0,2034.2,2.20527]
[1625204764195,8.6359,2037.0,2034.2,2.20527]
[1625204765001,1.0,2037.0,2035.0,5.29667]
[1625204766457,1.0,2037.0,2035.1,17.85]
[1625204766911,2.20527,2035.9,2035.7,2.20527]
[1625204767103,2.20527,2035.9,2035.7,5.12487]
[1625204768658,1.0,2038.0,2035.7,5.12487]
[1625204769010,2.20527,2037.1,2037.0,2.20527]
[1625204769713,2.20527,2037.1,2037.0,1.04335242]
[1625204769813,2.20527,2037.1,2036.8,2.20527]
[1625204770164,3.20527,2037.1,2036.8,2.20527]
[1625204770466,2.20527,2037.1,2036.8,2.20527]
[1625204770869,2.20527,2037.1,2035.0,8.0914]
[1625204770968,2.20527,2036.6,2036.1,2.20527]
[1625204771066,5.25197,2036.6,2036.1,2.20527]
[1625204772873,6.25197,2036.6,2036.1,2.20527]
[1625204772972,2.20527,2036.2,2036.1,2.20527]
[1625204774081,5.25197,2036.6,2036.1,2.20527]
[1625204774482,1.0,2036.5,2036.1,2.20527]
[1625204774980,1.0,2036.5,2036.4,2.20527]
[1625204775081,2.20527,2036.6,2036.4,2.20527]
[1625204775532,3.20527,2036.6,2036.4,2.20527]
[1625204776135,2.20527,2036.6,2036.4,2.20527]
[1625204776535,3.20527,2036.6,2036.4,2.20527]
[1625204776985,2.20527,2036.5,2036.4,2.20527]
[1625204777084,5.55777,2036.5,2036.4,2.20527]
[1625204778389,6.55777,2036.5,2036.4,2.20527]
[1625204779639,6.55777,2036.5,2036.1,2.20527]
[1625204780492,6.55777,2036.5,2035.1,14.6418]
[1625204780608,11.55777,2036.5,2035.1,14.6418]
[1625204781042,4.41054,2035.2,2035.1,14.6418]
[1625204781142,8.61274,2035.2,2035.1,14.6418]
[1625204781295,8.61274,2035.2,2034.8,17.48177]
[1625204782095,8.61274,2035.2,2034.8,15.2765]
[1625204783105,2.20527,2034.9,2034.8,15.2765]
[1625204783205,3.20527,2034.9,2034.8,15.2765]
[1625204784707,2.20527,2034.9,2034.8,15.2765]
[1625204784906,3.20527,2034.9,2034.8,15.2765]
[1625204785214,2.20527,2034.9,2034.8,15.2765]
[1625204785965,3.20527,2034.9,2034.8,15.2765]
[1625204786876,6.20067,2034.9,2034.8,5.5616]
[1625204786978,6.20067,2034.9,2033.2,15.9281]
[1625204787076,2.20527,2033.7,2033.5,2.20527]
[1625204787177,4.79157,2033.7,2033.5,0.65227]
[1625204787278,4.79157,2033.7,2033.3,2.20527]
[1625204787677,5.79157,2033.7,2033.3,2.20527]
[1625204787878,4.79157,2033.7,2033.3,2.20527]
[1625204788429,1.0,2033.6,2033.3,2.20527]
[1625204789034,2.20527,2033.4,2033.3,2.20527]
[1625204789283,3.20527,2033.4,2033.3,2.20527]
[1625204789482,3.20527,2033.4,2031.8,14.8018]
[1625204790289,57.9794,2032.9,2031.8,14.8018]
[1625204790389,1.0,2032.8,2031.1,5.0]
[1625204790493,6.0,2032.8,2031.1,5.0]
[1625204790742,6.0,2032.8,2031.1,0.4943]
[1625204791090,4.41054,2031.2,2031.1,0.4943]
[1625204791193,5.41054,2031.2,2031.1,0.4943]
[1625204791303,14.08934,2031.2,2030.1,20.7835]
[1625204791396,9.08934,2031.2,2030.1,5.0]
[1625204791895,59.1721,2031.1,2030.1,5.0]
[1625204792047,1.0,2031.0,2030.1,5.0]
[1625204792246,6.0,2031.0,2030.1,3.217]
[1625204792698,1.0,2031.0,2030.1,3.217]
[1625204792801,6.0,2031.0,2030.1,2.6982]
[1625204792895,1.0,2031.0,2030.1,2.6982]
[1625204792996,1.0,2031.0,2030.1,1.2192]
[1625204793099,4.41054,2030.2,2030.0,9.05]
[1625204793199,1.0,2030.1,2030.0,9.0009]
[1625204793301,1.0,2030.1,2030.0,8.366]
[1625204793448,1.0,2030.1,2028.2,5.0]
[1625204793554,2.91430641,2029.8,2028.2,5.0]
[1625204793665,1.0,2029.7,2028.2,5.0]
[1625204793848,5.0,2029.6,2028.2,5.0]
[1625204793997,1.0,2029.5,2028.2,5.0]
[1625204794499,1.0,2029.5,2028.2,3.84]
[1625204794902,1.0,2029.5,2028.2,2.68]
[1625204795103,4.41054,2028.3,2028.2,2.68]
[1625204795303,7.04014,2028.3,2028.2,2.68]
[1625204795452,7.04014,2028.3,2028.2,2.63]
[1625204795654,3.4485,2028.8,2028.2,2.63]
[1625204795953,0.9962,2031.0,2028.2,2.63]
[1625204796214,0.9709,2032.4,2028.2,2.63]
[1625204796313,1.0,2031.4,2028.2,4.9869]
[1625204796417,4.4107,2031.4,2028.2,4.9869]
[1625204796618,22.1607,2031.4,2028.2,4.9869]
[1625204796765,22.1607,2031.4,2028.2,0.9869]
[1625204796865,22.1607,2031.4,2028.5,50.5101]
[1625204796971,22.1607,2031.4,2028.2,0.9869]
[1625204797165,2.20527,2030.3,2030.2,2.20527]
[1625204798065,5.64907,2030.3,2030.2,2.20527]
[1625204798172,5.64907,2030.3,2030.0,2.20527]
[1625204798317,5.64907,2030.3,2028.3,50.52]
[1625204798927,5.64907,2030.3,2028.4,17.79]
[1625204799129,5.64907,2030.3,2030.2,4.41054]
[1625204801040,5.64907,2030.3,2028.3,50.52]
[1625204801135,5.64907,2030.3,2029.7,2.20527]
[1625204801842,57.9794,2032.9,2029.7,4.92617]
[1625204801942,1.39767202,2037.7,2029.7,4.92617]
[1625204802058,0.982,2033.7,2029.7,4.92617]
[1625204802190,5.0,2033.1,2029.7,4.92617]
[1625204802392,15.226,2034.1,2029.7,4.92617]
[1625204802541,30.1323,2034.1,2030.4,54.5017]
[1625204802641,0.3892475,2034.0,2030.4,3.2929]
[1625204802842,19.2492475,2034.0,2030.4,3.2929]
[1625204803094,1.15,2033.6,2030.4,3.2929]
[1625204803192,4.91737,2030.9,2030.8,2.20527]
[1625204805148,7.12264,2030.9,2030.8,2.20527]
[1625204805999,7.12264,2030.9,2030.6,2.20527]
[1625204807803,7.12264,2030.9,2029.1,15.0945]
[1625204809154,2.20527,2029.9,2029.8,2.20527]
[1625204809305,5.44277,2029.9,2029.8,2.20527]
[1625204810307,5.44277,2029.9,2029.6,2.20527]
[1625204811157,2.20527,2029.7,2029.6,2.20527]
[1625204811560,5.44277,2029.9,2029.6,2.20527]
[1625204812410,5.44277,2029.9,2029.3,2.20527]
[1625204812661,6.44277,2029.9,2029.3,2.20527]
[1625204812963,5.44277,2029.9,2029.3,2.20527]
[1625204813165,4.41054,2029.4,2029.3,2.20527]
[1625204813314,8.21014,2029.4,2029.3,2.20527]
[1625204813819,8.21014,2029.4,2028.4,14.5789]
[1625204813917,8.21014,2029.4,2027.3,15.1583]
[1625204814022,1.0,2029.3,2027.3,15.1583]
[1625204814117,8.21014,2029.4,2027.3,15.1583]
[1625204815069,1.0,2029.3,2027.3,15.1583]
[1625204815317,5.25127,2028.2,2028.0,2.20527]
[1625204816936,5.25127,2028.2,2027.8,2.20527]
[1625204817236,2.20527,2027.9,2027.8,2.20527]
[1625204819693,2.20527,2028.2,2027.8,2.20527]
[1625204819793,1.0,2029.2,2027.8,2.20527]
[1625204819952,5.0,2031.5,2027.8,5.09507]
[1625204820698,5.0,2031.5,2027.9,17.95]
[1625204820797,1.0,2031.4,2027.9,17.95]
[1625204820897,19.02,2031.4,2027.9,17.95]
[1625204820995,21.5946,2031.4,2027.9,14.6906]
[1625204821197,3.5746,2031.4,2027.9,14.6906]
[1625204821297,2.20527,2029.7,2029.6,2.20527]
[1625204822051,4.6771,2030.6,2029.6,2.20527]
[1625204822700,1.0,2030.6,2029.4,2.20527]
[1625204823300,2.20527,2029.5,2029.4,2.20527]
[1625204823500,2.20527,2029.7,2029.4,2.20527]
[1625204823749,4.3838,2030.6,2029.4,2.20527]
[1625204823750,1.0,2030.6,2029.4,2.20527]
[1625204823850,2.5746,2031.4,2029.4,2.20527]
[1625204823954,1.0,2031.3,2029.4,2.20527]
[1625204824554,4.2207,2031.3,2029.4,2.20527]
[1625204824705,5.0,2031.2,2029.4,2.20527]
[1625204824857,1.0,2031.1,2029.4,2.20527]
[1625204825257,2.20527,2029.8,2029.7,2.20527]
[1625204826209,3.20527,2029.8,2029.4,2.20527]
[1625204826566,6.93707,2029.8,2029.4,2.20527]
[1625204826960,6.93707,2029.8,2028.1,14.9835]
[1625204827313,6.93707,2029.8,2029.4,2.20527]
[1625204828415,6.93707,2029.8,2028.1,14.9835]
[1625204829265,6.93707,2029.8,2029.3,2.20527]
[1625204830018,6.93707,2029.8,2029.1,2.20527]
[1625204830220,6.93707,2029.8,2028.1,14.9835]
[1625204830423,11.93707,2029.8,2028.1,14.9835]
[1625204831026,6.93707,2029.8,2028.1,14.9835]
[1625204831226,5.0,2029.7,2028.1,14.9835]
[1625204831344,2.20527,2028.4,2028.3,2.20527]
[1625204831435,5.70607,2028.4,2028.3,2.20527]
[1625204831838,2.6733,2029.2,2028.3,2.20527]
[1625204831938,2.6733,2029.2,2028.3,5.00457]
[1625204833096,2.6733,2029.2,2028.3,2.20527]
[1625204833195,5.0,2029.1,2028.3,2.20527]
[1625204833297,4.41054,2028.4,2027.8,0.72527]
[1625204833396,13.07424,2028.4,2027.8,0.72527]
[1625204833498,13.07424,2028.4,2027.2,5.0]
[1625204833847,8.07424,2028.4,2027.2,5.0]
[1625204835349,2.20527,2027.6,2027.5,2.20527]
[1625204835449,5.56247,2027.6,2027.3,2.20527]
[1625204837001,5.56247,2027.6,2027.2,5.0]
[1625204837305,2.20527,2027.3,2027.2,5.0]
[1625204838262,2.20527,2027.3,2026.6,2.20527]
[1625204838360,2.20527,2027.3,2026.2,5.0]
[1625204838959,7.20527,2027.3,2026.2,5.0]
[1625204839362,4.41054,2026.3,2026.2,5.0]
[1625204842869,7.90154,2026.3,2026.2,5.0]
[1625204846477,4.41054,2026.3,2026.2,5.0]
[1625204846626,1.0,2027.5,2026.2,8.2957]
[1625204846734,1.0,2028.5,2026.2,8.2957]
[1625204846831,15.6446,2029.4,2026.2,8.2957]
[1625204847382,4.41054,2026.3,2026.2,8.2957]
[1625204847945,4.41054,2026.3,2026.2,5.0]
[1625204848182,2.20527,2026.3,2026.2,5.0]
[1625204848637,1.0,2027.8,2026.2,5.0]
[1625204848731,0.9734,2029.3,2026.2,7.9941]
[1625204848732,5.0,2029.0,2026.2,7.9941]
[1625204848833,1.0,2028.9,2026.2,7.9941]
[1625204849386,2.20527,2027.0,2026.9,2.20527]
[1625204849542,23.02,2028.8,2026.9,4.71607]
[1625204849642,0.9734,2029.3,2026.9,4.71607]
[1625204849738,5.0,2028.7,2026.9,4.71607]
[1625204849937,1.9734,2029.3,2026.9,4.71607]
[1625204850039,0.9968,2029.9,2026.9,4.71607]
[1625204850597,17.79,2029.5,2026.9,4.71607]
[1625204850848,5.0,2029.4,2026.9,4.71607]
[1625204851198,17.96,2029.3,2026.9,4.71607]
[1625204851298,5.0,2029.2,2026.9,4.71607]
[1625204851401,2.20527,2028.1,2028.0,2.20527]
[1625204851700,2.3353,2029.7,2028.0,2.20527]
[1625204852207,17.1059,2030.3,2028.0,2.20527]
[1625204852303,16.1059,2030.3,2028.0,2.20527]
[1625204852403,16.0606,2031.1,2028.0,2.20527]
[1625204852504,16.0529,2031.1,2028.0,2.20527]
[1625204852956,6.0,2031.0,2028.0,2.20527]
[1625204853058,23.85,2031.0,2028.0,2.20527]
[1625204853405,2.20527,2029.0,2028.9,2.20527]
[1625204853655,2.20527,2029.0,2027.5,15.65]
[1625204854605,2.20527,2029.0,2027.5,76.7632]
[1625204855005,2.20527,2029.0,2027.6,18.02]
[1625204855256,2.20527,2029.0,2027.5,76.7632]
[1625204855407,7.53294,2029.0,2028.9,2.20527]
[1625204857212,7.53294,2029.0,2027.5,15.65]
[1625204857461,2.20527,2028.2,2027.8,2.20527]
[1625204857612,4.79957,2028.2,2027.8,2.20527]
[1625204858814,4.79957,2028.2,2027.6,2.20527]
[1625204859015,4.79957,2028.2,2027.5,15.65]
[1625204859119,4.79957,2028.2,2026.2,5.0]
[1625204859318,9.79957,2028.2,2026.2,5.0]
[1625204859420,2.20527,2026.6,2026.5,2.20527]
[1625204859521,4.85937,2026.6,2026.5,2.20527]
[1625204859618,2.6541,2026.6,2026.5,2.20527]
[1625204861420,2.20527,2027.2,2026.5,2.20527]
[1625204861522,2.20527,2027.2,2026.5,5.58697]
[1625204863472,2.20527,2027.2,2027.1,2.20527]
[1625204864073,2.20527,2027.2,2027.1,4.57107]
[1625204866430,2.20527,2027.2,2027.1,2.20527]
[1625204866537,2.20527,2027.2,2026.2,5.0]
[1625204866637,5.14117,2027.2,2026.2,5.0]
[1625204867584,5.14117,2027.2,2027.1,4.41054]
[1625204868590,5.14117,2027.2,2026.2,5.0]
[1625204869542,2.20527,2026.7,2026.4,2.20527]
[1625204869649,5.23417,2026.7,2026.2,5.0]
[1625204871514,5.23417,2026.7,2026.3,2.20527]
[1625204873567,5.23417,2026.7,2026.6,2.20527]
[1625204873668,3.0289,2026.7,2026.6,2.20527]
[1625204873778,1.0,2028.3,2026.6,2.20527]
[1625204873869,15.3966,2028.6,2026.6,2.20527]
[1625204874072,14.6232,2029.8,2026.6,2.20527]
[1625204874773,22.86,2029.1,2026.6,2.20527]
[1625204874873,27.3615,2029.1,2026.6,2.20527]
[1625204875525,2.20527,2027.5,2027.4,2.20527]
[1625204877478,2.20527,2027.5,2026.2,5.0]
[1625204877581,4.41054,2027.5,2026.6,2.20527]
[1625204878835,7.79734,2027.5,2026.6,2.20527]
[1625204879488,7.79734,2027.5,2026.2,5.0]
[1625204879588,4.41054,2026.7,2026.2,5.0]
[1625204879688,7.79174,2026.7,2026.2,5.0]
[1625204881594,2.20527,2026.7,2026.6,4.41054]
[1625204882545,2.20527,2027.1,2026.6,4.41054]
[1625204882744,2.20527,2027.1,2026.6,8.01054]
[1625204883199,1.0,2028.4,2026.6,8.01054]
[1625204883294,16.1691,2029.1,2026.6,8.01054]
[1625204883544,47.9837,2029.2,2026.6,8.01054]
[1625204883695,2.20527,2027.9,2027.8,2.20527]
[1625204884745,3.6137,2028.9,2027.8,2.20527]
[1625204885598,2.20527,2028.3,2028.2,2.20527]
[1625204885699,4.98337,2028.3,2028.2,2.20527]
[1625204887668,7.18864,2028.3,2028.2,2.20527]
[1625204893080,7.18864,2028.3,2027.8,2.20527]
[1625204893189,12.18864,2028.3,2026.8,15.3793]
[1625204893630,4.41054,2026.9,2026.8,15.3793]
[1625204893731,7.96664,2026.9,2026.8,15.3793]
[1625204893881,7.96664,2026.9,2026.6,2.20527]
[1625204901397,3.5561,2026.9,2026.6,2.20527]
[1625204901494,1.0,2028.0,2026.6,2.20527]
[1625204901594,43.6242,2028.1,2026.6,2.20527]
[1625204901695,2.20527,2027.6,2027.5,2.20527]
[1625204901799,2.20527,2027.6,2025.4,4.759]
[1625204902198,2.20527,2027.6,2025.5,2.88610027]
[1625204902798,2.20527,2027.6,2025.6,0.9873]
[1625204902998,2.20527,2027.6,2025.6,2.88583772]
[1625204903398,2.20527,2027.6,2025.8,2.88566154]
[1625204903648,2.20527,2027.6,2027.3,2.20527]
[1625204904904,2.20527,2027.6,2027.1,2.20527]
[1625204905013,2.20527,2027.6,2026.2,5.0]
[1625204905614,7.20527,2027.6,2026.2,5.0]
[1625204905705,2.20527,2026.7,2026.6,2.20527]
[1625204905812,2.20527,2026.7,2026.2,5.0]
[1625204905907,4.91257,2026.7,2026.2,5.0]
[1625204906009,5.0,2026.6,2026.2,5.0]
[1625204906875,5.0,2026.6,2025.2,3.97487386]
[1625204907080,5.0,2026.6,2024.9,6.8541]
[1625204907182,60.668,2025.1,2024.7,2.88774994]
[1625204907377,60.668,2025.1,2023.3,17.99598702]
[1625204907378,5.0,2025.0,2024.3,7.88859991]
[1625204907681,4.41054,2024.4,2024.3,7.88859991]
[1625204907829,6.79584,2024.4,2024.3,7.88859991]
[1625204908441,6.79584,2024.4,2024.3,3.329]
[1625204908542,11.79584,2024.4,2024.3,3.329]
[1625204908789,11.79584,2024.4,2023.3,7.88983087]
[1625204909243,11.79584,2024.4,2023.3,5.0]
[1625204909344,11.79584,2024.4,2023.3,4.3469]
[1625204909490,23.03,2024.3,2023.3,4.3469]
[1625204909692,18.03,2024.3,2023.3,4.3469]
[1625204909793,4.41054,2023.4,2023.3,4.3469]
[1625204910192,1.0,2024.4,2023.3,4.3469]
[1625204910292,7.20693717,2026.2,2023.3,4.3469]
[1625204910393,1.0,2025.8,2023.3,5.3469]
[1625204910495,1.0,2025.8,2023.3,7.218]
[1625204911746,2.20527,2024.9,2024.8,2.20527]
[1625204913096,1.0,2026.4,2024.8,2.20527]
[1625204913197,1.0,2026.7,2024.8,2.20527]
[1625204913297,5.0,2026.9,2024.8,2.20527]
[1625204913400,16.0684,2027.1,2024.8,2.20527]
[1625204913799,2.20527,2025.6,2025.5,5.53047]
[1625204914047,16.0684,2027.1,2025.5,5.53047]
[1625204914399,6.0,2027.4,2025.5,5.53047]
[1625204914497,5.0,2027.4,2025.5,5.53047]
[1625204914599,1.89444845,2027.6,2025.5,5.53047]
[1625204915199,2.89444845,2027.6,2025.5,5.53047]
[1625204915302,1.0,2027.6,2025.5,5.53047]
[1625204915801,2.20527,2026.6,2026.5,2.20527]
[1625204915904,2.20527,2026.6,2026.5,5.99057]
[1625204916503,1.0,2027.8,2026.5,5.99057]
[1625204916654,1.89736472,2028.2,2026.5,5.99057]
[1625204917258,3.52367734,2028.5,2026.5,5.99057]
[1625204917259,53.65910204,2028.4,2026.5,5.99057]
[1625204917359,17.94,2028.1,2026.5,5.99057]